{"text_format":"1","workbook":"xlsx","n_sheets":3,"sheets":["Principal","Registro","Resultados"],"not_rendered":{"charts":0,"images":10,"macros":1,"external_links":0,"defined_names":0,"comments":0,"pivot_tables":0},"unopened":[],"bounds":{"document_bytes":16777216,"sheet_cells":100000,"rows_first":2000,"rows_last":500,"rows_between":2000,"halvings":0,"cell_chars":16384,"cell_head_chars":4096},"cells_cut":0,"cells_raw":0,"read":"whole","date_system":"1900"}

{"sheet":"Principal","index":0,"n_rows":6,"n_cols":7,"rows_kept":6,"cut":false,"hidden":false,"merged":[]}
[]
[]
[null,null,null,null,null,null,"Bienvenido !"]
[]
[null,null,null,null,null,null,"Esta nueva aplicación le permitirá valorizar un máximo de 3 acciones de la bolsa."]
[null,null,null,null,null,null,"Encontrará una variedad de botones para su uso."]

{"sheet":"Registro","index":1,"n_rows":5,"n_cols":2,"rows_kept":5,"cut":false,"hidden":false,"merged":[[0,1,2,5],[4,3,4,5]]}
[null,"Cuadro de Rentabilidades"]
[]
[]
[]
[null,2]

{"sheet":"Resultados","index":2,"n_rows":27,"n_cols":10,"rows_kept":27,"cut":false,"hidden":false,"merged":[[11,9,12,9],[4,7,4,8],[15,3,15,4],[12,2,12,4],[4,2,4,4],[13,3,13,4],[14,3,14,4],[11,7,12,7],[11,8,12,8]]}
[]
[]
[]
[]
[null,{"$f":"(B1048573*XFA1048574)+(B1048574*XFA1048575)","v":0},"Cuadro de Resultados",null,null,null,null,"Ponderaciones"]
[null,null,null,"E( r )","Riesgo ",null,null,"W1"]
[null,null,{"$f":"Registro!D6","v":0},null,null,null,null,"W2"]
[null,null,{"$f":"Registro!E6","v":0},null,null,null,null,"W3"]
[null,null,{"$f":"Registro!F6","v":0}]
[]
[]
[null,null,null,null,null,null,null,"Indicadores de Portafolio",{"$f":"D6","v":"E( r )"},{"$f":"E6","v":"Riesgo "}]
[null,null,"Coef.Correlación de Portafolio Posibles"]
[null,null,{"$f":"C7&\"-\"&C8","v":"0-0"},null,null,null,{"$f":"(Registro!C7)*(Registro!D7-Resultados!$D$7)*(Registro!E7-Resultados!$D$8)","v":0},{"$f":"C14","v":"0-0"}]
[null,null,{"$f":"C8&\"-\"&C9","v":"0-0"},null,null,null,{"$f":"(Registro!C8)*(Registro!D8-Resultados!$D$7)*(Registro!E8-Resultados!$D$8)","v":0},{"$f":"C15","v":"0-0"}]
[null,null,{"$f":"C7&\"-\"&C9","v":"0-0"},null,null,null,{"$f":"(Registro!C9)*(Registro!D9-Resultados!$D$7)*(Registro!E9-Resultados!$D$8)","v":0},"0-0"]
[]
[]
[]
[]
[]
[]
[]
[]
[null,null,{"$f":"(Registro!C7)*(Registro!D7-Resultados!$D$7)*(Registro!E7-Resultados!$D$8)","v":0},{"$f":"(Registro!C7)*(Registro!D7-Resultados!$D$7)*(Registro!F7-Resultados!$D$9)","v":0},{"$f":"(Registro!C7)*(Registro!E7-Resultados!$D$8)*(Registro!F7-Resultados!$D$9)","v":0}]
[null,null,{"$f":"(Registro!C8)*(Registro!D8-Resultados!$D$7)*(Registro!E8-Resultados!$D$8)","v":0},{"$f":"(Registro!C8)*(Registro!D8-Resultados!$D$7)*(Registro!F8-Resultados!$D$9)","v":0},{"$f":"(Registro!C8)*(Registro!E8-Resultados!$D$8)*(Registro!F8-Resultados!$D$9)","v":0}]
[null,null,{"$f":"(Registro!C9)*(Registro!D9-Resultados!$D$7)*(Registro!E9-Resultados!$D$8)","v":0},{"$f":"(Registro!C9)*(Registro!D9-Resultados!$D$7)*(Registro!F9-Resultados!$D$9)","v":0},{"$f":"(Registro!C9)*(Registro!E9-Resultados!$D$8)*(Registro!F9-Resultados!$D$9)","v":0}]